fUST/lending_fUST_20250531
["ID","MTS","AMOUNT","RATE_DAILY","PERIOD"]
[363285866,1748658642302,-282.20404482,0.00017534,2]
[363285867,1748658642312,-454.49421082,0.00017534,2]
[363285868,1748658642321,-430.0,0.00017534,2]
[363285869,1748658642330,-340.96525395,0.00017534,2]
[363285870,1748658642340,-482.02,0.00017534,2]
[363285871,1748658642349,-484.13,0.00017534,2]
[363285872,1748658642359,-272.65227927,0.00017534,2]
[363285873,1748658642368,-576.02332546,0.00017534,2]
[363285874,1748658642378,-704.63,0.00017534,2]
[363285875,1748658642387,-430.0,0.00017534,2]
[363285876,1748658642399,-430.0,0.00017534,2]
[363285877,1748658642409,-520.46,0.00017534,2]
[363285878,1748658642418,-430.0,0.00017534,2]
[363285879,1748658642427,-557.15,0.00017534,2]
[363285880,1748658642437,-430.0,0.00017534,2]
[363285881,1748658642447,-487.65257868,0.00017534,2]
[363285882,1748658642457,-430.0,0.00017534,2]
[363285883,1748658642467,-889.05,0.00017534,2]
[363285884,1748658642476,-425.63764307,0.00017538,2]
[363285885,1748658642486,-206.17626019,0.000176,2]
[363285886,1748658642495,-1077.1181603,0.00017674,2]
[363285887,1748658642505,-1000.0,0.00017677,2]
[363285888,1748658642514,-501.73897437,0.00017677,2]
[363285889,1748658642524,-1000.0,0.00017677,2]
[363285890,1748658642533,-265.67849848,0.00017697,2]
[363285891,1748658642543,-1000.0,0.00017712,2]
[363285892,1748658642552,-2755.93095573,0.00017728,2]
[363285893,1748658642562,-487.00177156,0.00017808,2]
[363285894,1748658642571,-430.0,0.00017808,2]
[363285895,1748658642581,-487.1,0.00017808,2]
[363285896,1748658642590,-261.91704568,0.00017808,2]
[363285897,1748658642599,-322.49072865,0.00017808,2]
[363285898,1748658642609,-490.5192889,0.00017808,2]
[363285899,1748658642618,-765.86,0.00017808,2]
[363285900,1748658642627,-1149.84,0.00017808,2]
[363285901,1748658642637,-536.88,0.00017808,2]
[363285902,1748658642651,-430.0,0.00017808,2]
[363285903,1748658642659,-430.0,0.00017808,2]
[363285904,1748658642668,-875.79,0.00017808,2]
[363285905,1748658642677,-433.31278646,0.00017808,2]
[363285906,1748658642686,-1359.21,0.00017808,2]
[363285907,1748658642698,-1479.6,0.00017808,2]
[363285908,1748658642707,-430.0,0.00017808,2]
[363285909,1748658642717,-430.0,0.00017808,2]
[363285910,1748658642726,-430.0,0.00017808,2]
[363285911,1748658642736,-430.0,0.00017808,2]
[363285912,1748658642748,-462.2,0.00017808,2]
[363285913,1748658642757,-636.16,0.00017808,2]
[363285914,1748658642767,-430.0,0.00017808,2]
[363285915,1748658642775,-982.3,0.00017808,2]
[363285916,1748658642786,-430.0,0.00017808,2]
[363285917,1748658642795,-529.12341231,0.00017808,2]
[363285918,1748658642804,-430.0,0.00017808,2]
[363285919,1748658642814,-430.0,0.00017808,2]
[363285920,1748658642824,-430.0,0.00017808,2]
[363285921,1748658642834,-430.0,0.00017808,2]
[363285922,1748658642843,-482.02,0.00017808,2]
[363285923,1748658642853,-484.13,0.00017808,2]
[363285924,1748658642862,-704.63,0.00017808,2]
[363285925,1748658642871,-419.24765016,0.00017808,2]
[363285926,1748658642881,-430.0,0.00017808,2]
[363285927,1748658642894,-520.46,0.00017808,2]
[363285928,1748658642903,-430.0,0.00017808,2]
[363285929,1748658642912,-557.15,0.00017808,2]
[363285930,1748658642922,-430.0,0.00017808,2]
[363285931,1748658642931,-430.0,0.00017808,2]
[363285932,1748658642940,-889.05,0.00017808,2]
[363285933,1748658642949,-1000.0,0.00017836,2]
[363285934,1748658642959,-470.98260152,0.00017852,2]
[363285935,1748658642967,-420.0,0.00017962,2]
[363285936,1748658642976,-420.0,0.00017962,2]
[363285937,1748658642986,-2755.93095573,0.00018003,2]
[363285938,1748658642995,-374.0,0.00018052,2]
[363285939,1748658643004,-500.0,0.00018056,2]
[363285940,1748658643014,-616.84,0.00018072,3]
[363285941,1748658643023,-308.42,0.00018072,3]
[363285942,1748658643032,-160.0,0.00018074,2]
[363285943,1748658643041,-423.4608169,0.00018075,2]
[363285944,1748658643051,-842.5625,0.00018075,2]
[363285945,1748658643063,-229.3428821,0.00018075,2]
[363285946,1748658643073,-160.0,0.00018075,2]
[363285947,1748658643083,-160.0,0.00018075,2]
[363285948,1748658643093,-12664.98044988,0.00018075,2]
[363285949,1748658643102,-212.77096907,0.00018075,2]
[363285950,1748658643113,-160.0,0.00018075,2]
[363285951,1748658643123,-160.0,0.00018075,2]
[363285952,1748658643132,-160.0,0.00018075,2]
[363285953,1748658643143,-160.0,0.00018075,2]
[363285954,1748658643152,-160.0,0.00018079,2]
[363285955,1748658643161,-214.89560876,0.00018082,2]
[363285956,1748658643170,-487.1,0.00018082,2]
[363285957,1748658643180,-765.86,0.00018082,2]
[363285958,1748658643190,-1149.84,0.00018082,2]
[363285959,1748658643200,-536.88,0.00018082,2]
[363285960,1748658643210,-323.53493338,0.00018082,2]
[363285961,1748658643219,-244.92575393,0.00018082,2]
[363285962,1748658643228,-875.79,0.00018082,2]
[363285963,1748658643238,-1359.21,0.00018082,2]
[363285964,1748658643247,-1479.6,0.00018082,2]
[363285965,1748658643257,-430.0,0.00018082,2]
[363285966,1748658643266,-430.0,0.00018082,2]
[363285967,1748658643275,-430.0,0.00018082,2]
[363285968,1748658643284,-473.56,0.00018082,2]
[363285969,1748658643293,-462.2,0.00018082,2]
[363285970,1748658643302,-636.16,0.00018082,2]
[363285971,1748658643311,-430.0,0.00018082,2]
[363285972,1748658643321,-982.3,0.00018082,2]
[363285973,1748658643330,-430.0,0.00018082,2]
[363285974,1748658643339,-430.0,0.00018082,2]
[363285975,1748658643348,-430.0,0.00018082,2]
[363285977,1748658643357,-430.0,0.00018082,2]
[363285978,1748658643366,-430.0,0.00018082,2]
[363285980,1748658643375,-482.02,0.00018082,2]
[363285981,1748658643384,-484.13,0.00018082,2]
[363285982,1748658643395,-704.63,0.00018082,2]
[363285983,1748658643404,-470.71755874,0.00018082,2]
[363285984,1748658643413,-520.46,0.00018082,2]
[363285985,1748658643423,-429.42603532,0.00018082,2]
[363285986,1748658643432,-557.15,0.00018082,2]
[363285987,1748658643443,-430.0,0.00018082,2]
[363285988,1748658643452,-430.0,0.00018082,2]
[363285989,1748658643461,-889.05,0.00018082,2]
[363285990,1748658643471,-1500.0,0.00018225,2]
[363285991,1748658643480,-509.7816681,0.00018225,2]
[363285992,1748658643489,-1500.0,0.0001826,2]
[363285993,1748658643498,-2755.93095573,0.00018279,2]
[363285994,1748658643508,-151.0,0.00018356,2]
[363285995,1748658643517,-207.4,0.00018356,2]
[363285996,1748658643526,-151.47158686,0.00018356,2]
[363285997,1748658643536,-300.0,0.00018356,2]
[363285998,1748658643546,-332.79567003,0.00018356,2]
[363285999,1748658643555,-5000.0,0.00018356,2]
[363286000,1748658643565,-487.1,0.00018356,2]
[363286001,1748658643575,-765.86,0.00018356,2]
[363286002,1748658643585,-1149.84,0.00018356,2]
[363286003,1748658643595,-536.88,0.00018356,2]
[363286004,1748658643604,-875.79,0.00018356,2]
[363286005,1748658643614,-1359.21,0.00018356,2]
[363286006,1748658643623,-1479.6,0.00018356,2]
[363286007,1748658643634,-430.0,0.00018356,2]
[363286008,1748658643645,-430.0,0.00018356,2]
[363286009,1748658643655,-462.2,0.00018356,2]
[363286010,1748658643664,-636.16,0.00018356,2]
[363286011,1748658643674,-430.0,0.00018356,2]
[363286012,1748658643683,-982.3,0.00018356,2]
[363286013,1748658643693,-430.0,0.00018356,2]
[363286014,1748658643702,-476.68056328,0.00018356,2]
[363286015,1748658643711,-430.0,0.00018356,2]
[363286016,1748658643721,-430.0,0.00018356,2]
[363286018,1748658643731,-430.0,0.00018356,2]
[363286019,1748658643743,-482.02,0.00018356,2]
[363286020,1748658643752,-484.13,0.00018356,2]
[363286021,1748658643762,-704.63,0.00018356,2]
[363286022,1748658643771,-520.46,0.00018356,2]
[363286023,1748658643782,-557.15,0.00018356,2]
[363286024,1748658643791,-430.0,0.00018356,2]
[363286025,1748658643801,-889.05,0.00018356,2]
[363286026,1748658643811,-200.0,0.00018384,10]
[363286027,1748658643821,-200.0,0.00018384,10]
[363286028,1748658643830,-200.0,0.00018384,10]
[363286029,1748658643839,-200.0,0.00018384,10]
[363286030,1748658643849,-200.0,0.00018384,10]
[363286031,1748658643859,-200.0,0.00018384,10]
[363286032,1748658643868,-200.0,0.00018384,10]
[363286033,1748658643878,-200.0,0.00018384,10]
[363286034,1748658643888,-200.0,0.00018384,10]
[363286035,1748658643899,-200.0,0.00018384,10]
[363286036,1748658643912,-200.0,0.00018384,10]
[363286037,1748658643928,-200.0,0.00018384,10]
[363286038,1748658643938,-200.0,0.00018384,10]
[363286039,1748658643947,-200.0,0.00018384,10]
[363286040,1748658643956,-200.0,0.00018384,10]
[363286041,1748658643965,-200.0,0.00018384,10]
[363286042,1748658643976,-200.0,0.00018384,10]
[363286043,1748658643986,-200.0,0.00018384,10]
[363286044,1748658643996,-200.0,0.00018384,10]
[363286045,1748658644005,-200.0,0.00018384,10]
[363286046,1748658644015,-200.0,0.00018384,10]
[363286047,1748658644026,-200.0,0.00018384,10]
[363286048,1748658644037,-200.0,0.00018384,10]
[363286049,1748658644047,-200.0,0.00018384,10]
[363286050,1748658644057,-207.065122,0.00018384,10]
[363286051,1748658644066,-1643.82978831,0.00018384,2]
[363286052,1748658644076,-2755.93095573,0.00018555,2]
[363286053,1748658644088,-171.3,0.00018624,2]
[363286054,1748658644098,-171.3,0.00018624,2]
[363286055,1748658644108,-487.1,0.0001863,2]
[363286056,1748658644118,-765.86,0.0001863,2]
[363286057,1748658644129,-1149.84,0.0001863,2]
[363286058,1748658644139,-536.88,0.0001863,2]
[363286059,1748658644150,-875.79,0.0001863,2]
[363286060,1748658644160,-1359.21,0.0001863,2]
[363286061,1748658644170,-1479.6,0.0001863,2]
[363286062,1748658644179,-430.0,0.0001863,2]
[363286063,1748658644189,-430.0,0.0001863,2]
[363286064,1748658644198,-462.2,0.0001863,2]
[363286065,1748658644208,-636.16,0.0001863,2]
[363286066,1748658644218,-430.0,0.0001863,2]
[363286067,1748658644227,-982.3,0.0001863,2]
[363286068,1748658644236,-430.0,0.0001863,2]
[363286069,1748658644246,-430.0,0.0001863,2]
[363286070,1748658644255,-430.0,0.0001863,2]
[363286071,1748658644265,-482.02,0.0001863,2]
[363286072,1748658644274,-484.13,0.0001863,2]
[363286073,1748658644288,-704.63,0.0001863,2]
[363286074,1748658644308,-520.46,0.0001863,2]
[363286075,1748658644318,-557.15,0.0001863,2]
[363286076,1748658644328,-889.05,0.0001863,2]
[363286077,1748658644339,-1233.68,0.00018694,3]
[363286078,1748658644348,-546.69542658,0.00018773,2]
[363286079,1748658644357,-1000.0,0.0001878,2]
[363286080,1748658644367,-2000.0,0.00018808,2]
[363286081,1748658644377,-2755.93095573,0.00018831,2]
[363286082,1748658644387,-2237.77220966,0.000189,2]
[363286083,1748658644397,-5000.0,0.00018904,2]
[363286084,1748658644407,-487.1,0.00018904,2]
[363286085,1748658644417,-765.86,0.00018904,2]
[363286086,1748658644426,-1149.84,0.00018904,2]
[363286087,1748658644435,-536.88,0.00018904,2]
[363286088,1748658644445,-875.79,0.00018904,2]
[363286089,1748658644455,-1359.21,0.00018904,2]
[363286090,1748658644464,-1479.6,0.00018904,2]
[363286091,1748658644474,-430.0,0.00018904,2]
[363286092,1748658644484,-430.0,0.00018904,2]
[363286093,1748658644494,-462.2,0.00018904,2]
[363286094,1748658644504,-636.16,0.00018904,2]
[363286095,1748658644514,-430.0,0.00018904,2]
[363286096,1748658644524,-982.3,0.00018904,2]
[363286097,1748658644632,-430.0,0.00018904,2]
[363286098,1748658644662,-430.0,0.00018904,2]
[363286099,1748658644672,-430.0,0.00018904,2]
[363286100,1748658644683,-482.02,0.00018904,2]
[363286101,1748658644692,-484.13,0.00018904,2]
[363286102,1748658644702,-704.63,0.00018904,2]
[363286103,1748658644711,-520.46,0.00018904,2]
[363286104,1748658644721,-557.15,0.00018904,2]
[363286105,1748658644731,-889.05,0.00018904,2]
[363286106,1748658644745,-501.45760143,0.00018958,2]
[363286107,1748658644754,-273.0,0.00019,2]
[363286108,1748658644764,-273.0,0.000191,2]
[363286109,1748658644774,-2755.93095573,0.00019107,2]
[363286110,1748658644785,-284.6396,0.0001917,2]
[363286111,1748658644795,-29072.09516586,0.00019171,2]
[363286112,1748658644804,-634.6037642,0.00019178,2]
[363286113,1748658644814,-500.0,0.00019178,2]
[363286114,1748658644824,-500.0,0.00019178,2]
[363286115,1748658644833,-500.0,0.00019178,2]
[363286116,1748658644843,-500.0,0.00019178,2]
[363286117,1748658644852,-405.29049005,0.00019178,2]
[363286118,1748658644862,-500.0,0.00019178,2]
[363286119,1748658644871,-500.0,0.00019178,2]
[363286120,1748658644882,-500.0,0.00019178,2]
[363286121,1748658644895,-435.0,0.00019178,2]
[363286122,1748658644905,-500.0,0.00019178,2]
[363286123,1748658644915,-500.0,0.00019178,2]
[363286124,1748658644924,-500.0,0.00019178,2]
[363286125,1748658644934,-205.11529356,0.00019178,2]
[363286126,1748658644945,-487.1,0.00019178,2]
[363286127,1748658644955,-437.61257935,0.00019178,2]
[363286128,1748658644965,-765.86,0.00019178,2]
[363286129,1748658644977,-1149.84,0.00019178,2]
[363286130,1748658644987,-536.88,0.00019178,2]
[363286131,1748658644997,-875.79,0.00019178,2]
[363286132,1748658645007,-1359.21,0.00019178,2]
[363286133,1748658645016,-1479.6,0.00019178,2]
[363286134,1748658645026,-430.0,0.00019178,2]
[363286135,1748658645036,-430.0,0.00019178,2]
[363286136,1748658645045,-462.2,0.00019178,2]
[363286137,1748658645054,-636.16,0.00019178,2]
[363286138,1748658645064,-421.4,0.00019178,2]
[363286139,1748658645073,-982.3,0.00019178,2]
[363286140,1748658645083,-430.0,0.00019178,2]
[363286141,1748658645093,-496.92527064,0.00019178,2]
[363286142,1748658645103,-430.0,0.00019178,2]
[363286143,1748658645112,-482.02,0.00019178,2]
[363286144,1748658645121,-484.13,0.00019178,2]
[363286145,1748658645130,-704.63,0.00019178,2]
[363286146,1748658645139,-520.46,0.00019178,2]
[363286147,1748658645151,-557.15,0.00019178,2]
[363286148,1748658645161,-500.0,0.00019178,2]
[363286149,1748658645170,-500.0,0.00019178,2]
[363286150,1748658645180,-500.0,0.00019178,2]
[363286151,1748658645190,-500.0,0.00019178,2]
[363286152,1748658645200,-500.0,0.00019178,2]
[363286153,1748658645209,-500.0,0.00019178,2]
[363286154,1748658645219,-500.0,0.00019178,2]
[363286155,1748658645228,-500.0,0.00019178,2]
[363286156,1748658645237,-500.0,0.00019178,2]
[363286157,1748658645247,-500.0,0.00019178,2]
[363286158,1748658645256,-500.0,0.00019178,2]
[363286159,1748658645266,-500.0,0.00019178,2]
[363286160,1748658645275,-500.0,0.00019178,2]
[363286161,1748658645284,-500.0,0.00019178,2]
[363286162,1748658645294,-500.0,0.00019178,2]
[363286163,1748658645303,-889.05,0.00019178,2]
[363286164,1748658645313,-151.0,0.00019178,2]
[363286165,1748658645324,-431.787779,0.00019178,2]
[363286166,1748658645334,-1000.0,0.000192,2]
[363286167,1748658645343,-2148.22,0.000192,2]
[363286168,1748658645353,-156.587,0.00019233,2]
[363286169,1748658645362,-162.380719,0.00019288,2]
[363286170,1748658645372,-89359.41374845,0.00019329,2]
[363286171,1748658645384,-168.3888056,0.00019343,2]
[363286172,1748658645394,-2500.0,0.00019356,2]
[363286173,1748658645403,-2755.93095573,0.00019383,2]
[363286174,1748658645412,-174.61919141,0.00019398,2]
[363286175,1748658645422,-506.58068065,0.000194,2]
[363286176,1748658645431,-500.0,0.000194,2]
[363286177,1748658645440,-5000.0,0.00019452,2]
[363286178,1748658645449,-1000.0,0.00019452,2]
[363286179,1748658645457,-1000.0,0.00019452,2]
[363286180,1748658645466,-1000.0,0.00019452,2]
[363286181,1748658645475,-1000.0,0.00019452,2]
[363286182,1748658645484,-1000.0,0.00019452,2]
[363286183,1748658645494,-1000.0,0.00019452,2]
[363286184,1748658645503,-1000.0,0.00019452,2]
[363286185,1748658645513,-1000.0,0.00019452,2]
[363286186,1748658645522,-1000.0,0.00019452,2]
[363286187,1748658645531,-1000.0,0.00019452,2]
[363286188,1748658645541,-1000.0,0.00019452,2]
[363286189,1748658645550,-1000.0,0.00019452,2]
[363286190,1748658645560,-1000.0,0.00019452,2]
[363286191,1748658645569,-1000.0,0.00019452,2]
[363286192,1748658645579,-1000.0,0.00019452,2]
[363286193,1748658645588,-1000.0,0.00019452,2]
[363286194,1748658645597,-1000.0,0.00019452,2]
[363286195,1748658645606,-1000.0,0.00019452,2]
[363286196,1748658645616,-1000.0,0.00019452,2]
[363286197,1748658645625,-1000.0,0.00019452,2]
[363286198,1748658645635,-1000.0,0.00019452,2]
[363286199,1748658645645,-1000.0,0.00019452,2]
[363286200,1748658645655,-1000.0,0.00019452,2]
[363286201,1748658645663,-499.32577521,0.00019452,2]
[363286202,1748658645673,-487.1,0.00019452,2]
[363286203,1748658645682,-765.86,0.00019452,2]
[363286204,1748658645692,-1149.84,0.00019452,2]
[363286205,1748658645701,-536.88,0.00019452,2]
[363286206,1748658645710,-875.79,0.00019452,2]
[363286207,1748658645720,-1359.21,0.00019452,2]
[363286208,1748658645729,-1479.6,0.00019452,2]
[363286209,1748658645740,-430.0,0.00019452,2]
[363286210,1748658645751,-430.0,0.00019452,2]
[363286211,1748658645760,-462.2,0.00019452,2]
[363286212,1748658645770,-636.16,0.00019452,2]
[363286213,1748658645778,-982.3,0.00019452,2]
[363286214,1748658645789,-430.0,0.00019452,2]
[363286215,1748658645798,-430.0,0.00019452,2]
[363286216,1748658645808,-482.02,0.00019452,2]
[363286217,1748658645818,-484.13,0.00019452,2]
[363286218,1748658645828,-704.63,0.00019452,2]
[363286219,1748658645837,-520.46,0.00019452,2]
[363286220,1748658645847,-557.15,0.00019452,2]
[363286221,1748658645856,-181.08010149,0.00019453,2]
[363286222,1748658645866,-273.0,0.000195,2]
[363286223,1748658645875,-500.0,0.000195,2]
[363286224,1748658645884,-187.78006525,0.00019508,2]
[363286225,1748658645894,-500.0,0.00019533,2]
[363286226,1748658645904,-194.72792766,0.00019563,2]
[363286227,1748658645914,-708.0,0.00019602,2]
[363286228,1748658645923,-2228.0,0.00019602,2]
[363286229,1748658645932,-407.709,0.00019602,2]
[363286230,1748658645941,-962.0,0.00019602,2]
[363286231,1748658645950,-201.93286099,0.00019618,2]
[363286232,1748658645959,-587.0,0.0001963,2]
[363286233,1748658645968,-587.0,0.0001963,2]
[363286234,1748658645978,-2755.93095573,0.00019659,2]
[363286235,1748658645987,-209.40437684,0.00019673,2]
[363286236,1748658645996,-155.313,0.00019724,2]
[363286237,1748658646006,-215.0738,0.00019725,2]
[363286238,1748658646015,-487.1,0.00019726,2]
[363286239,1748658646024,-765.86,0.00019726,2]
[363286240,1748658646033,-1149.84,0.00019726,2]
[363286241,1748658646042,-536.88,0.00019726,2]
[363286242,1748658646051,-875.79,0.00019726,2]
[363286243,1748658646060,-1359.21,0.00019726,2]
[363286244,1748658646070,-1479.6,0.00019726,2]
[363286245,1748658646079,-430.0,0.00019726,2]
[363286246,1748658646088,-291.25275212,0.00019726,2]
[363286247,1748658646098,-462.2,0.00019726,2]
[363286248,1748658646107,-636.16,0.00019726,2]
[363286249,1748658646116,-982.3,0.00019726,2]
[363286250,1748658646126,-376.93505676,0.00019726,2]
[363286251,1748658646135,-430.0,0.00019726,2]
[363286252,1748658646146,-482.02,0.00019726,2]
[363286253,1748658646155,-484.13,0.00019726,2]
[363286254,1748658646164,-704.63,0.00019726,2]
[363286255,1748658646175,-520.46,0.00019726,2]
[363286256,1748658646184,-557.15,0.00019726,2]
[363286257,1748658646194,-217.15233878,0.00019728,2]
[363286258,1748658646203,-2200.0,0.00019741,2]
[363286259,1748658646213,-500.0,0.00019745,2]
[363286260,1748658646222,-1161.68496714,0.0001978,2]
[363286261,1748658646231,-225.18697532,0.00019783,2]
[363286262,1748658646241,-500.0,0.00019829,2]
[363286263,1748658646250,-173.5688213,0.00019836,2]
[363286264,1748658646260,-173.5688213,0.00019836,2]
[363286265,1748658646269,-233.51889341,0.00019838,2]
[363286266,1748658646279,-502.48531816,0.0001986,2]
[363286267,1748658646288,-500.0,0.0001986,2]
[363286268,1748658646297,-500.0,0.00019864,2]
[363286269,1748658646306,-501.16466585,0.00019864,2]
[363286270,1748658646316,-501.21357946,0.00019864,2]
[363286271,1748658646326,-500.0,0.00019864,2]
[363286272,1748658646335,-500.0,0.00019864,2]
[363286273,1748658646344,-502.647107,0.00019864,2]
[363286274,1748658646354,-502.06588637,0.00019864,2]
[363286275,1748658646363,-500.0,0.00019864,2]
[363286276,1748658646372,-500.0,0.00019864,2]
[363286277,1748658646381,-500.0,0.00019886,2]
[363286278,1748658646391,-500.0,0.00019886,2]
[363286279,1748658646405,-500.0,0.00019886,2]
[363286280,1748658646414,-500.0,0.00019888,2]
[363286281,1748658646424,-500.0,0.00019888,2]
[363286282,1748658646434,-242.15909246,0.00019893,2]
[363286283,1748658646443,-3000.0,0.00019904,2]
[363286284,1748658646453,-2755.93095573,0.00019934,2]
[363286285,1748658646462,-500.0,0.00019947,2]
[363286286,1748658646471,-500.0,0.00019947,2]
[363286287,1748658646481,-500.0,0.00019947,2]
[363286288,1748658646490,-500.83944222,0.00019947,2]
[363286289,1748658646499,-500.0,0.00019947,2]
[363286290,1748658646509,-501.60266877,0.00019947,2]
[363286291,1748658646518,-215.99549423,0.00019947,2]
[363286292,1748658646527,-500.0,0.00019947,2]
[363286293,1748658646537,-500.0,0.00019947,2]
[363286294,1748658646546,-502.84122441,0.00019947,2]
[363286295,1748658646555,-500.0,0.00019947,2]
[363286296,1748658646565,-500.0,0.00019947,2]
[363286297,1748658646574,-500.0,0.00019947,2]
[363286298,1748658646584,-500.0,0.00019947,2]
[363286299,1748658646593,-600.0,0.00019947,2]
[363286300,1748658646602,-505.01652487,0.00019947,2]
[363286301,1748658646612,-500.0,0.00019947,2]
[363286302,1748658646621,-500.0,0.00019947,2]
[363286303,1748658646631,-500.0,0.00019948,2]
[363286304,1748658646643,-251.11897888,0.00019948,2]
[363286305,1748658646653,-5000.0,0.0002,2]
[363286306,1748658646663,-153.80719698,0.0002,2]
[363286307,1748658646672,-4189.0,0.0002,2]
[363286308,1748658646682,-170.47251921,0.0002,5]
[363286309,1748658646691,-153.80719698,0.0002,7]
[363286310,1748658646700,-175.395,0.0002,2]
[363286311,1748658646710,-151.85193045,0.0002,2]
[363286313,1748658646719,-487.1,0.0002,2]
[363286314,1748658646728,-150.0,0.0002,30]
[363286315,1748658646740,-765.86,0.0002,2]
[363286316,1748658646749,-1149.84,0.0002,2]
[363286317,1748658646757,-536.88,0.0002,2]
[363286318,1748658646766,-875.79,0.0002,2]
[363286319,1748658646775,-1359.21,0.0002,2]
[363286320,1748658646784,-1479.6,0.0002,2]
[363286321,1748658646793,-430.0,0.0002,2]
[363286322,1748658646802,-300.0,0.0002,2]
[363286323,1748658646811,-462.2,0.0002,2]
[363286324,1748658646822,-636.16,0.0002,2]
[363286325,1748658646830,-155.0494955,0.0002,20]
[363286326,1748658646839,-312.9626019,0.0002,7]
[363286327,1748658646849,-982.3,0.0002,2]
[363286328,1748658646857,-430.0,0.0002,2]
[363286329,1748658646866,-482.02,0.0002,2]
[363286330,1748658646875,-484.13,0.0002,2]
[363286331,1748658646884,-704.63,0.0002,2]
[363286332,1748658646893,-520.46,0.0002,2]
[363286333,1748658646902,-557.15,0.0002,2]
[363286334,1748658646911,-260.4103811,0.00020003,2]
[363286335,1748658646920,-754.479,0.00020007,2]
[363286336,1748658646929,-270.0455652,0.00020058,2]
[363286337,1748658646938,-500.0,0.00020081,2]
[363286338,1748658646947,-280.03725112,0.00020113,2]
[363286339,1748658646956,-290.39862941,0.00020168,2]
[363286340,1748658646965,-17311.30562189,0.00020173,3]
[363286341,1748658646975,-212.77096907,0.0002018,3]
[363286342,1748658646983,-188.007887,0.00020187,2]
[363286343,1748658646992,-5000.0,0.00020197,2]
[363286344,1748658647030,-212.77096907,0.000202,3]
[363286345,1748658647039,-160.0,0.000202,3]
[363286346,1748658647047,-842.5625,0.000202,3]
[363286347,1748658647056,-12664.98044988,0.000202,3]
[363286348,1748658647065,-2755.93095573,0.0002021,2]
[363286349,1748658647074,-301.1433787,0.00020223,2]
[363286350,1748658647083,-487.1,0.00020273,2]
[363286351,1748658647092,-765.86,0.00020273,2]
[363286352,1748658647100,-1149.84,0.00020273,2]
[363286353,1748658647109,-536.88,0.00020273,2]
[363286354,1748658647118,-875.79,0.00020273,2]
[363286355,1748658647127,-1359.21,0.00020273,2]
[363286356,1748658647136,-1479.6,0.00020273,2]
[363286357,1748658647146,-430.0,0.00020273,2]
[363286358,1748658647155,-462.2,0.00020273,2]
[363286359,1748658647163,-636.16,0.00020273,2]
[363286360,1748658647173,-982.3,0.00020273,2]
[363286361,1748658647182,-430.0,0.00020273,2]
[363286362,1748658647191,-482.02,0.00020273,2]
[363286363,1748658647200,-484.13,0.00020273,2]
[363286364,1748658647208,-704.63,0.00020273,2]
[363286365,1748658647216,-520.46,0.00020273,2]
[363286366,1748658647224,-557.15,0.00020273,2]
[363286367,1748658647231,-166.0,0.00020274,2]
[363286368,1748658647239,-432.82338581,0.00020293,2]
[363286369,1748658647246,-500.0,0.00020377,2]